[Event "44th Chess Olympiad Open 2022"]
[Site "Chennai"]
[Date "2022.08.03"]
[Round "6.35"]
[White "Karimov, Alisher"]
[Black "Henderson de La Fuente, Lance"]
[Result "0-1"]
[WhiteElo "2234"]
[BlackElo "2490"]
[Annotator "TA"]
[PlyCount "76"]
[EventDate "2022.??.??"]
[TimeControl "60"]

{[%evp 13,76,13,12,9,9,0,10,7,13,12,42,0,46,19,12,-29,-38,-33,-35,-110,-125,
-110,-103,-341,-325,-435,-161,-156,-90,-70,-79,-79,-58,-48,-60,-104,-104,-104,
-108,-105,-111,-111,-104,-174,-174,-176,-169,-398,-395,-379,-378,-572,-571,
-571,-556,-681,-681,-681,-681,-676,-672,-952,-945,-818,-709]} 1. d4 {[%emt 0:
00:00]} d5 {[%emt 0:00:44]} 2. c4 {[%emt 0:00:11]} e6 {[%emt 0:00:07]} 3. Nc3 {
[%emt 0:00:06]} c6 {[%emt 0:00:05]} 4. e3 {[%emt 0:00:12]} Nf6 {[%emt 0:00:16]}
5. Nf3 {[%emt 0:00:09]} Nbd7 {[%emt 0:00:07]} 6. Be2 {[%emt 0:00:14]} dxc4 {
[%emt 0:02:01]} 7. a4 {[%emt 0:00:08] outshines the older 7.Bxc4.} Bb4 {
[%emt 0:05:21]} 8. Bxc4 {[%emt 0:00:25] D45: Semi-Slav: 5 e3.} O-O {[%emt 0:00:
00]} 9. O-O {[%emt 0:00:23]} b6 {[%emt 0:01:24]} 10. Qe2 {[%emt 0:02:17] The
position is equal.} c5 {[%emt 0:06:45] [#]} 11. Na2 $146 {[%emt 0:11:03]} ({
Predecessor:} 11. d5 exd5 12. Nxd5 Bb7 13. Nxb4 cxb4 14. Bd2 Bxf3 15. gxf3 Qe7
16. f4 Ne4 17. Be1 {½-½ (26) Kullberg,M (2148)-Meissner,R (2272) ICCF email
2021}) 11... Bb7 {[%emt 0:08:09]} 12. Ne5 {[%emt 0:06:51]} a5 {[%emt 0:05:21]}
(12... Ba5 $11 {deserves consideration.}) 13. Nxb4 {[%emt 0:14:41]} cxb4 {
[%emt 0:00:21]} 14. Bb5 {[%emt 0:01:40]} Nxe5 {[%emt 0:06:17]} 15. dxe5 {
[%emt 0:00:51]} Ne4 {[%emt 0:06:43]} 16. Qg4 {[%emt 0:15:15]} (16. f3 $15 Nc5
17. e4) 16... Qc7 $17 {[%emt 0:07:05]} 17. f3 {[%emt 0:15:25]} Nc5 {[%emt 0:00:
00]} 18. Qg3 $2 {[%emt 0:00:19]} (18. e4 $17) 18... Nb3 $19 {[%emt 0:04:40]}
19. Rb1 {[%emt 0:00:08] [#]} Qc5 $2 {[%emt 0:02:16]} (19... Qc2 20. e4 $1 Qc5+
21. Kh1 Nxc1 22. Rfxc1 $11 (22. Rbxc1 Qd4 $11)) (19... Be4 $1 20. fxe4 Qc2) 20.
Qf2 {[%emt 0:09:01]} Qxe5 {[%emt 0:04:19] Black is more active.} (20... Bc6
$142 $1 21. Bxc6 Qxc6) 21. e4 $17 {[%emt 0:00:17]} Nc5 {[%emt 0:00:00]} (21...
Nxc1 $6 22. Rfxc1 Ba6 23. Qxb6 Bxb5 24. axb5 $11) 22. Be3 {[%emt 0:00:00]} Rac8
{[%emt 0:00:15]} 23. Rbc1 {[%emt 0:02:08]} Rfd8 {[%emt 0:00:55]} 24. Rfd1 {
[%emt 0:01:07] White is on the road to losing.} Rxd1+ {[%emt 0:02:32]} 25. Rxd1
{[%emt 0:00:02]} h6 {[%emt 0:00:51]} 26. Qg3 {[%emt 0:07:08]} Qxg3 {[%emt 0:03:
49]} (26... Qxb2 $2 27. Bd4 Qxd4+ 28. Rxd4 $18) 27. hxg3 {[%emt 0:00:00]} Bc6
$1 {[%emt 0:00:49]} 28. Rd6 {[%emt 0:00:00]} (28. Bxc5 $17 {is a better
defense.} bxc5 29. Bc4) 28... Bxb5 $19 {[%emt 0:00:54]} 29. axb5 {[%emt 0:00:
00] Endgame KRB-KRN} a4 {[%emt 0:08:46] Threatens to win with ...b3.} 30. Rxb6
$2 {[%emt 0:01:34]} (30. Kf1) 30... a3 {[%emt 0:00:43]} 31. bxa3 {[%emt 0:00:
35] [#] Strongly threatening Rc6.} (31. Bxc5 $2 axb2 32. Rc6 b1=Q+ $19) 31...
b3 $1 {[%emt 0:00:07][%cal Yb4b3,Yb3b2]} (31... bxa3 32. Bxc5 Rxc5 33. Ra6 $11)
32. Rd6 {[%emt 0:05:50]} (32. Bc1 {is the only way for White.} Kf8 33. a4 (33.
Rc6 $2 Rxc6 34. bxc6 Ke7 $19) 33... Nxa4 34. Ba3+ (34. Rc6 $2 Rxc6 35. bxc6 Ke7
$19) 34... Ke8 35. Rd6 (35. Rc6 $2 Rxc6 36. bxc6 Kd8 $19)) 32... b2 {[%emt 0:
00:14] Black is clearly winning.} 33. Rd1 {[%emt 0:00:06] [#]} Na4 {[%emt 0:00:
32] White must now prevent ...Nc3.} 34. Rb1 {[%emt 0:00:09]} Rc3 {[%emt 0:01:
05][%csl Ya3,Ye3]} 35. Kf2 {[%emt 0:05:38]} Rc2+ {[%emt 0:00:32] Skewer} ({
Don't blunder} 35... Rb3 $2 36. Bd4 $19) 36. Ke1 {[%emt 0:01:43]} Nc3 {[%emt 0:
00:27]} 37. b6 {[%emt 0:00:28]} Nxb1 {[%emt 0:00:06]} 38. b7 {[%emt 0:00:33]}
Nc3 {[%emt 0:00:19] Weighted Error Value: White=0.54/Black=0.14 (very precise)}
0-1

[Event "44th Chess Olympiad Open 2022"]
[Site "Chennai"]
[Date "2022.08.03"]
[Round "6.35"]
[White "Ribera Veganzones, Josep Maria"]
[Black "Ilkhomi, Jaloliddin"]
[Result "1/2-1/2"]
[WhiteElo "2228"]
[BlackElo "2076"]
[Annotator "NA RC"]
[PlyCount "60"]
[EventDate "2022.??.??"]
[TimeControl "60"]

1. e4 {[%emt 0:00:06]} e6 {[%emt 0:00:13]} 2. d4 {[%emt 0:00:27]} d5 {[%emt 0:
00:00]} 3. Nd2 {[%emt 0:00:27]} Nf6 {[%emt 0:00:20]} 4. e5 {[%emt 0:00:19]}
Nfd7 {[%emt 0:00:04]} 5. Bd3 {[%emt 0:00:46]} c5 {[%emt 0:00:23]} 6. c3 {
[%emt 0:00:14]} b6 {[%emt 0:00:13]} 7. Nh3 {[%emt 0:06:37]} Ba6 {[%emt 0:00:55]
} 8. Bxa6 {[%emt 0:01:50]} Nxa6 {[%emt 0:00:13]} 9. Nf3 {[%emt 0:01:53]} cxd4 {
[%emt 0:00:57]} 10. cxd4 {[%emt 0:00:41]} Bb4+ {[%emt 0:00:14]} 11. Bd2 {
[%emt 0:00:26]} O-O {[%emt 0:00:39]} 12. O-O {[%emt 0:01:11]} Bxd2 {[%emt 0:00:
00]} 13. Qxd2 {[%emt 0:01:21]} Qe7 {[%emt 0:00:47]} 14. a3 {[%emt 0:01:43]}
Rfc8 {[%emt 0:03:01]} 15. Qd3 {[%emt 0:03:36]} Nab8 {[%emt 0:03:43]} 16. Rfc1 {
[%emt 0:07:08]} Nc6 {[%emt 0:01:01]} 17. b4 {[%emt 0:04:39]} Nf8 {[%emt 0:00:
00]} 18. Rc3 {[%emt 0:08:51]} Qd7 {[%emt 0:02:46]} 19. Rac1 {[%emt 0:09:18]}
Ne7 {[%emt 0:00:04]} 20. Nf4 {[%emt 0:02:14]} Rxc3 {[%emt 0:01:06]} 21. Rxc3 {
[%emt 0:03:43]} Rc8 {[%emt 0:00:17]} 22. h4 {[%emt 0:00:46]} Rxc3 {[%emt 0:00:
00]} 23. Qxc3 {[%emt 0:00:07]} Qc6 {[%emt 0:00:53]} 24. Ne2 {[%emt 0:02:15]}
Qxc3 {[%emt 0:03:29]} 25. Nxc3 {[%emt 0:00:06]} a6 {[%emt 0:00:08]} 26. b5 {
[%emt 0:02:52]} axb5 {[%emt 0:05:01]} 27. Nxb5 {[%emt 0:01:22]} Nc6 {[%emt 0:
00:00]} 28. Kf1 {[%emt 0:00:33]} f6 {[%emt 0:01:12]} 29. exf6 {[%emt 0:03:49]}
gxf6 {[%emt 0:00:08]} 30. Ke2 {[%emt 0:02:33]} h5 {[%emt 0:08:17]} 1/2-1/2

[Event "44th Chess Olympiad Open 2022"]
[Site "Chennai"]
[Date "2022.08.03"]
[Round "6.35"]
[White "Sharifov, Mekhriddin"]
[Black "De La Riva Aguado, Oscar"]
[Result "0-1"]
[WhiteElo "2097"]
[BlackElo "2424"]
[Annotator "TA"]
[PlyCount "62"]
[EventDate "2022.??.??"]
[TimeControl "60"]

{[%evp 14,62,24,8,24,18,24,0,0,0,0,21,16,-8,-10,-30,-22,-63,-62,-61,-51,-93,
-87,-124,-115,-124,-122,-121,-99,-135,-135,-184,-179,-236,-241,-363,-315,-402,
-389,-474,-433,-527,-496,-517,-469,-475,-398,-554,-419,-384,-333]} 1. e4 {
[%emt 0:00:03]} c5 {[%emt 0:00:17]} 2. Nf3 {[%emt 0:00:08]} Nc6 {[%emt 0:00:31]
} 3. d4 {[%emt 0:00:10]} cxd4 {[%emt 0:00:07]} 4. Nxd4 {[%emt 0:00:03]} e6 {
[%emt 0:00:52]} 5. Nc3 {[%emt 0:00:08]} Qc7 {[%emt 0:00:09]} 6. Be3 {[%emt 0:
00:00]} a6 {[%emt 0:00:33]} 7. Qd2 {[%emt 0:00:09] 7.g4 deserves study.} Nf6 {
[%emt 0:00:46]} 8. f3 {[%emt 0:00:10]} Be7 {[%emt 0:03:36] B48: Sicilian:
Taimanov: 5 Nc3 Qc7 6 Be3 a6 without Be2.} 9. O-O-O {[%emt 0:00:34]} b5 {
[%emt 0:00:09][%cal Yb7b5,Yb5b4]} 10. g4 {[%emt 0:03:55] 10.Kb1 is vanishing.}
Nxd4 {[%emt 0:04:45] The position is equal.} 11. Bxd4 {[%emt 0:00:00]} Bb7 {
[%emt 0:00:10]} 12. Kb1 {[%emt 0:05:29]} O-O {[%emt 0:06:30]} 13. Bd3 {[%emt 0:
11:01]} b4 {[%emt 0:13:37] White must now prevent ...e5.} 14. Ne2 {[%emt 0:01:
25]} e5 {[%emt 0:02:35]} 15. Bf2 {[%emt 0:01:22]} d5 $36 {[%emt 0:00:00][%cal
Rd5e4] Black is pushing.} 16. Ng3 {[%emt 0:07:04]} dxe4 $1 {[%emt 0:09:32] [#]}
17. fxe4 $146 {[%emt 0:34:00] Black keeps a firm grip on the game.} ({
Predecessor:} 17. Nxe4 Nd5 18. Bg3 a5 19. h4 a4 20. g5 Rfd8 21. Rhe1 Rac8 22.
Qc1 a3 23. b3 {0-1 (47) Wilson,A (2051)-Jacobs,C (2193) ICCF email 2017}) 17...
Nxg4 {[%emt 0:15:29]} 18. h4 {[%emt 0:01:02]} Nxf2 {[%emt 0:00:00] Black is
more active.} 19. Qxf2 {[%emt 0:00:16]} Kh8 {[%emt 0:00:20]} 20. Qe2 {[%emt 0:
06:14]} Rac8 {[%emt 0:02:40]} 21. Rdf1 {[%emt 0:02:31] [#]} a5 $1 {[%emt 0:02:
34][%cal Ya6a5,Ya5a4,Ya4a3]} 22. Qg4 {[%emt 0:04:24]} (22. Bb5 $17) 22... Rcd8
{[%emt 0:02:35]} ({And not} 22... g6 23. h5 g5 24. b3 $17) 23. h5 {[%emt 0:01:
53] [#]} (23. Nf5 {was necessary.} g6 24. Nxe7 Qxe7 25. Rhg1) 23... h6 $1 $19 {
[%emt 0:00:50]} 24. Rh2 {[%emt 0:04:20]} (24. Qe2 $142) 24... Bg5 {[%emt 0:00:
50]} 25. Nf5 {[%emt 0:03:33]} a4 {[%emt 0:02:00]} 26. Rhf2 {[%emt 0:01:41]} Bc8
{[%emt 0:00:53] Threatens to win with ...a3. This bishop pair is nice.} 27. Qe2
{[%emt 0:00:10]} Be6 {[%emt 0:00:19] And now ... a3 would win.} 28. Ne3 {
[%emt 0:01:10]} Qc5 {[%emt 0:02:01] Inhibits Nd5.} 29. Nd5 {[%emt 0:00:39]} a3
{[%emt 0:02:00] aiming for ...f5.} 30. Bc4 {[%emt 0:00:00]} Qd4 {[%emt 0:02:36]
[%csl Ga3][%cal Rd4b2]} 31. c3 {[%emt 0:00:08]} bxc3 {[%emt 0:00:05] Weighted
Error Value: White=0.38/Black=0.12 (very precise)} 0-1

[Event "44th Chess Olympiad Open 2022"]
[Site "Chennai"]
[Date "2022.08.03"]
[Round "6.36"]
[White "Murphy, Conor E"]
[Black "Lee, Jun Hyeok"]
[Result "1-0"]
[WhiteElo "2404"]
[BlackElo "2390"]
[Annotator "TA"]
[PlyCount "55"]
[EventDate "2022.??.??"]
[TimeControl "60"]

{[%evp 19,55,44,46,52,51,39,60,51,56,37,38,35,37,38,58,51,60,55,54,55,139,143,
136,123,139,135,143,137,216,229,413,468,447,449,468,358,341,343]} 1. e4 {
[%emt 0:00:04]} c5 {[%emt 0:00:12]} 2. Nf3 {[%emt 0:00:19]} e6 {[%emt 0:00:10]}
3. d4 {[%emt 0:00:44]} cxd4 {[%emt 0:00:07]} 4. Nxd4 {[%emt 0:00:07]} a6 {
[%emt 0:00:11]} 5. c4 {[%emt 0:00:49]} Nf6 {[%emt 0:00:17]} 6. Nc3 {[%emt 0:00:
00]} d6 {[%emt 0:00:59]} 7. Be2 {[%emt 0:02:04]} Be7 {[%emt 0:00:54]} 8. Be3 {
[%emt 0:00:43]} b6 {[%emt 0:00:42]} 9. O-O {[%emt 0:01:37]} Bb7 {[%emt 0:00:13]
} 10. f3 {[%emt 0:00:22]} O-O {[%emt 0:01:09]} 11. Rc1 {[%emt 0:01:38] A31:
Symmetrical English: 2 Nf3 Nf6 3 d4.} Nbd7 {[%emt 0:00:06]} 12. a3 {[%emt 0:00:
00]} Qc7 {[%emt 0:01:39]} 13. b4 {[%emt 0:01:40] White is slightly better.}
Rac8 {[%emt 0:02:19]} 14. Qd2 {[%emt 0:01:12]} Qb8 {[%emt 0:00:57]} 15. Kh1 {
[%emt 0:04:04]} Rfe8 {[%emt 0:00:22]} 16. Rc2 {[%emt 0:03:15]} h5 {[%emt 0:00:
00]} 17. Bf2 {[%emt 0:06:18] [#]} Bf8 $146 {[%emt 0:07:57]} ({Predecessor:} 
17... h4 18. h3 Nh5 19. f4 Ng3+ 20. Bxg3 hxg3 21. f5 Bf6 22. Bh5 e5 23. Nde2
Bh4 {1-0 (68) Shabalov,A (2623)-Macieja,B (2653) Bermuda 2004}) 18. Rb1 {
[%emt 0:06:28]} Qa8 {[%emt 0:02:50]} 19. Na4 $36 {[%emt 0:09:28] White has the
initiative.} d5 {[%emt 0:09:06] [#]} ({Black should play} 19... Be7 $14) 20.
exd5 $1 $16 {[%emt 0:03:43] White is more active.} exd5 {[%emt 0:00:00] [#]}
21. c5 {[%emt 0:02:31]} bxc5 {[%emt 0:21:27]} 22. bxc5 {[%emt 0:00:00]} Bxc5 {
[%emt 0:00:24]} 23. Nxc5 {[%emt 0:01:53]} Nxc5 {[%emt 0:02:16]} (23... Rxc5 $16
{was worth a try.} 24. Rcb2 Bc6) 24. Nf5 {[%emt 0:09:04]} Nce4 {[%emt 0:04:16]}
(24... Ne6 25. Rcb2 Bc6) 25. fxe4 $18 {[%emt 0:09:34]} Nxe4 {[%emt 0:00:05] [#]
} 26. Qd4 {[%emt 0:02:31][%csl Gf5][%cal Rd4g7]} Nxf2+ {[%emt 0:00:42]} (26...
f6 27. Rcb2) 27. Kg1 {[%emt 0:00:45][%csl Gf5][%cal Rd4g7]} f6 {[%emt 0:00:08]}
28. Rcb2 {[%emt 0:01:53] Weighted Error Value: White=0.03 (flawless) /Black=0.
30} 1-0

[Event "44th Chess Olympiad Open 2022"]
[Site "Chennai"]
[Date "2022.08.03"]
[Round "6.36"]
[White "Kanyamarala, Tarun"]
[Black "Ahn, Hongjin"]
[Result "1-0"]
[WhiteElo "2379"]
[BlackElo "2303"]
[Annotator "TA"]
[PlyCount "115"]
[EventDate "2022.??.??"]
[TimeControl "60"]

{[%evp 17,114,44,46,38,38,37,35,44,72,68,82,51,95,74,87,58,73,58,62,63,96,91,
74,77,103,60,122,77,137,133,127,164,182,82,132,116,148,141,164,158,169,149,158,
137,141,100,160,141,166,147,218,200,197,180,389,380,402,416,666,671,727,616,
625,612,666,656,661,612,943,612,609,589,817,750,691,671,1039,1010,1287,1230,
1387,1376,1359,1335,29984,29985,29986,29987,29987,29988,29993,29994,29994,
29995,29995,29996,29998,29999,29999]} 1. d4 {[%emt 0:00:06]} d5 {[%emt 0:00:05]
} 2. c4 {[%emt 0:00:10]} e6 {[%emt 0:00:04]} 3. Nf3 {[%emt 0:00:14][%cal Yg1f3,
Yf3e5,Ye5c6,Yc6a5]} a6 {[%emt 0:00:12]} 4. g3 {[%emt 0:00:10]} dxc4 {[%emt 0:
00:13]} 5. Bg2 {[%emt 0:00:12]} b5 {[%emt 0:00:09]} 6. Ne5 {[%emt 0:00:00]} c6
{[%emt 0:00:19]} 7. O-O {[%emt 0:00:07]} Nf6 {[%emt 0:03:13]} 8. b3 {[%emt 0:
10:15]} cxb3 {[%emt 0:00:50]} 9. Nxc6 {[%emt 0:06:13]} Qb6 {[%emt 0:00:00] [#]}
10. Na5 {[%emt 0:00:39] E04: Open Catalan: 5 Nf3.} Ra7 {[%emt 0:11:32]} ({
Don't do} 10... Qxa5 11. Bxa8 bxa2 12. Qc2 $16) 11. Nxb3 {[%emt 0:06:41]} Rd7 {
[%emt 0:06:59]} 12. e4 {[%emt 0:02:28] White is slightly better.} Be7 {[%emt 0:
01:58]} 13. Be3 {[%emt 0:11:08]} O-O {[%emt 0:02:43]} 14. N1d2 {[%emt 0:03:03]
[#]} Ba3 $146 {[%emt 0:12:40]} ({Predecessor:} 14... Qd8 15. a4 bxa4 16. Rxa4
Bb7 17. Na5 Bc6 18. Nxc6 Nxc6 19. Nb3 Qb6 20. Ra1 Qb5 {½-½ (42) Razuvaev,Y 
(2520)-Gurevich,M (2435) Riga 1985}) 15. Qe2 {[%emt 0:09:32]} Qd8 {[%emt 0:18:
27]} 16. Nb1 {[%emt 0:12:35]} Bb4 {[%emt 0:00:05]} 17. a3 {[%emt 0:00:00]} Be7
{[%emt 0:00:02]} 18. a4 {[%emt 0:01:57]} Rb7 {[%emt 0:00:18]} 19. axb5 {
[%emt 0:03:39]} Rxb5 {[%emt 0:03:59]} 20. N1d2 $36 {[%emt 0:00:19] Black is
under strong pressure.} Bb7 {[%emt 0:03:09]} 21. Rfb1 {[%emt 0:00:00]} Nc6 {
[%emt 0:01:56]} (21... Bc6 $14) 22. Nc4 {[%emt 0:01:57]} Bb4 {[%emt 0:01:42]} (
{Black should play} 22... h5) 23. Na3 $16 {[%emt 0:04:23]} Bxa3 {[%emt 0:01:19]
} 24. Rxa3 {[%emt 0:00:27]} Ne7 {[%emt 0:03:25]} 25. Bd2 {[%emt 0:06:38]} (25.
f3 $18 {has better winning chances.}) 25... Qb6 {[%emt 0:00:00]} (25... Nc6
$142) 26. Ba5 {[%emt 0:02:23]} Qc6 {[%emt 0:00:02][%cal Rf6e4]} 27. Re1 {
[%emt 0:01:52]} Qd7 {[%emt 0:06:30]} 28. Bc3 {[%emt 0:01:55] This bishop pair
is nice.} Nc6 {[%emt 0:03:20]} 29. Rea1 {[%emt 0:04:10]} Rc8 {[%emt 0:01:20]}
30. Qe1 {[%emt 0:00:56]} Qe7 {[%emt 0:07:47]} 31. Qd2 {[%emt 0:00:00]} Rd8 {
[%emt 0:01:28]} (31... Ne8 $142) 32. f3 {[%emt 0:01:07]} h5 {[%emt 0:00:46]}
33. Bf1 {[%emt 0:00:29]} Rb6 {[%emt 0:01:44]} (33... Ne5 $16 34. Qd1 (34. dxe5
Rxd2 35. exf6 Qd6 $16) 34... Nxf3+ 35. Qxf3 Rf5) 34. Qf2 $18 {[%emt 0:00:23]} (
34. Bxa6 Bxa6 35. Rxa6 Ne5 36. dxe5 Rxd2 37. exf6 {[#]} (37. Rxb6 Nd7 $17)
37... Qc7 $1 38. Bxd2 Rxb3 $17) 34... Qc7 {[%emt 0:00:54]} 35. Na5 {[%emt 0:00:
52] Threatens to win with Nxc6.} Nb4 {[%emt 0:01:12]} (35... Rd7 36. Nc4 Rb5)
36. Qd2 {[%emt 0:03:05]} Qe7 {[%emt 0:01:37]} 37. Rb3 {[%emt 0:00:42]} Ba8 {
[%emt 0:00:34]} (37... Nbd5 $142 38. exd5 Rxb3 39. Nxb3 Bxd5) 38. Bxb4 {
[%emt 0:00:36]} Qc7 {[%emt 0:00:22]} 39. Bc5 {[%emt 0:00:50]} Rxb3 {[%emt 0:00:
13]} 40. Nxb3 {[%emt 0:00:02]} h4 {[%emt 0:00:35]} 41. Qa5 {[%emt 0:32:12]} Qd7
{[%emt 0:30:51]} 42. Bxa6 {[%emt 0:00:00] Black must now prevent Bb5.} hxg3 {
[%emt 0:00:00]} 43. hxg3 {[%emt 0:00:00] Bb5 is the strong threat.} Rb8 {
[%emt 0:00:00]} 44. Bc4 {[%emt 0:00:00]} Kh7 {[%emt 0:00:00]} 45. Qa7 {[%emt 0:
00:00]} Qe8 {[%emt 0:00:00]} 46. Qe7 {[%emt 0:00:00]} Qg8 {[%emt 0:00:00]} 47.
Ra7 {[%emt 0:00:00]} Kg6 {[%emt 0:00:00]} 48. Qc7 {[%emt 0:00:00]} Nh7 {
[%emt 0:00:00]} 49. Nd2 {[%emt 0:00:00]} Ng5 {[%emt 0:00:00]} 50. f4 {[%emt 0:
00:00]} Nxe4 {[%emt 0:00:00]} 51. Bd3 {[%emt 0:00:00] White mates.} f5 {
[%emt 0:00:00]} 52. Nxe4 {[%emt 0:00:00]} Bxe4 {[%emt 0:00:00] [#]} 53. Qe7 $1
{[%emt 0:02:14]} Bf3 {[%emt 0:00:00]} (53... Rb7 54. Rxb7) 54. Qg5+ {[%emt 0:
01:09]} Kh7 {[%emt 0:00:00]} 55. Qh4+ {[%emt 0:00:23]} Kg6 {[%emt 0:00:00]} 56.
g4 {[%emt 0:00:27][%cal Yg3g4,Yg4g5]} Rb7 {[%emt 0:00:00]} 57. Qh5+ {[%emt 0:
00:36]} Kf6 {[%emt 0:00:00]} 58. g5# {[%emt 0:00:14] Weighted Error Value:
White=0.22 (precise) /Black=0.38} 1-0

[Event "44th Chess Olympiad Open 2022"]
[Site "Chennai"]
[Date "2022.08.03"]
[Round "6.36"]
[White "Kwon, Sehyun"]
[Black "O`Gorman, Tom"]
[Result "1-0"]
[WhiteElo "2225"]
[BlackElo "2401"]
[Annotator "TA"]
[PlyCount "97"]
[EventDate "2022.??.??"]
[TimeControl "60"]

{[%evp 9,97,0,18,4,-4,-2,17,23,27,0,19,0,0,0,0,-4,-8,-13,-29,-20,-17,-31,-16,
-112,-34,-43,-37,-51,-51,-83,-89,-75,-73,-83,0,0,0,0,27,29,372,378,371,346,418,
416,416,410,439,422,466,437,535,444,442,434,420,410,435,422,429,415,415,413,
428,419,410,404,596,449,499,493,458,464,833,819,797,776,1000,984,970,966,942,
931,29978,29978,29977,29978,5089,1818]} 1. e4 {[%emt 0:00:09]} c5 {[%emt 0:00:
00]} 2. Nc3 {[%emt 0:01:20]} d6 {[%emt 0:00:11]} 3. d4 {[%emt 0:00:23]} cxd4 {
[%emt 0:00:34]} 4. Qxd4 {[%emt 0:00:08]} Nc6 {[%emt 0:00:53]} 5. Qd2 {[%emt 0:
00:00]} g6 {[%emt 0:00:00]} 6. b3 {[%emt 0:00:17] B23: Closed Sicilian: Lines
without g3.} Bh6 {[%emt 0:00:00]} 7. f4 {[%emt 0:02:02]} f5 {[%emt 0:00:00]} 8.
Bb2 {[%emt 0:00:59] The position is equal.} Nf6 {[%emt 0:00:02]} 9. O-O-O {
[%emt 0:00:36]} Rf8 {[%emt 0:01:52]} 10. exf5 {[%emt 0:13:21]} Bxf5 {[%emt 0:
00:00]} 11. g3 {[%emt 0:00:44]} Qa5 $1 {[%emt 0:04:49]} 12. Nf3 {[%emt 0:12:48]
} O-O-O $1 {[%emt 0:03:30] [#]} 13. Bd3 $146 {[%emt 0:02:50]} ({Predecessor:} 
13. Kb1 e5 14. a3 exf4 15. Nd4 Nxd4 16. Qxd4 f3 17. Nb5 Kb8 18. Nxd6 Qc7 19.
Bc4 {0-1 (38) Xu,X (2582)-Sasikiran,K (2656) Moscow 2019}) 13... Bg4 {[%emt 0:
00:00]} 14. Be2 {[%emt 0:05:42]} e5 {[%emt 0:05:04]} 15. Kb1 {[%emt 0:13:44]}
d5 {[%emt 0:04:36][%cal Yd6d5,Yd5d4]} 16. Ng5 {[%emt 0:04:03] [#]} (16. Qe1 $11
exf4 17. h3 Bxf3 18. Bxf3) 16... Bxe2 {[%emt 0:09:09]} ({Black should try} 
16... Bf5 $1 $17 17. Rhe1 d4) 17. Qxe2 $15 {[%emt 0:01:22] Hoping for Ne6.} d4
{[%emt 0:13:04]} 18. Nce4 {[%emt 0:17:23]} Nxe4 {[%emt 0:01:22]} 19. Qg4+ {
[%emt 0:02:06]} Kb8 {[%emt 0:01:29]} 20. Nxe4 {[%emt 0:00:18]} exf4 {[%emt 0:
02:16] ...f3 is the strong threat.} (20... Nb4 21. a3 Nd5 22. Qh3 $16 (22. fxe5
$2 Ne3 $17)) 21. Qh4 {[%emt 0:01:31]} Qh5 {[%emt 0:09:40]} (21... Bg7 $17 {
[%cal Yd4d3] And now ...d3! would win.} 22. Nf2 (22. Qxh7 d3 $17) 22... Nb4)
22. Qxh5 $11 {[%emt 0:02:34]} gxh5 {[%emt 0:00:02]} 23. Bc1 {[%emt 0:00:00]}
Rde8 {[%emt 0:04:20]} 24. Nc5 {[%emt 0:01:12] Black must now prevent Nd7+.} Rg8
$2 {[%emt 0:10:29] [#] This move loses the game for Black.} (24... Kc8 $11 {
and Black has nothing to worry.}) 25. Nd7+ $1 $18 {[%emt 0:00:00]} Kc8 {
[%emt 0:00:51]} 26. Nf6 {[%emt 0:01:43]} h4 {[%emt 0:01:55]} 27. Nxg8 {[%emt 0:
00:00]} ({Weaker is} 27. Nxe8 Rxe8 28. Rhf1 (28. gxh4 Kd7 $18) 28... Re2 29.
Bxf4 Bg7 $18) 27... Rxg8 {[%emt 0:01:33]} 28. Bxf4 {[%emt 0:00:00]} Bxf4 {
[%emt 0:00:28]} 29. gxf4 {[%emt 0:00:03] Endgame KRR-KRN} Rg2 {[%emt 0:00:20]}
30. Rhg1 {[%emt 0:03:42]} Rf2 {[%emt 0:01:34]} 31. Rgf1 {[%emt 0:00:00]} Rxh2 {
[%emt 0:02:24]} 32. Rh1 {[%emt 0:00:19]} Rf2 {[%emt 0:00:00]} 33. Rxh4 {
[%emt 0:00:06]} h5 {[%emt 0:00:06]} 34. a3 {[%emt 0:03:21]} Kc7 {[%emt 0:00:29]
} 35. Kc1 {[%emt 0:02:28]} Kb6 {[%emt 0:01:00]} 36. Rd2 {[%emt 0:00:26]} Rf1+ {
[%emt 0:03:55]} 37. Kb2 {[%emt 0:00:08]} Rf3 {[%emt 0:00:00]} 38. Rg2 {[%emt 0:
01:57]} Ka6 {[%emt 0:03:23]} (38... a5 {keeps fighting.} 39. Rxh5 Rxf4) 39. Rg5
{[%emt 0:01:11]} Rf2 {[%emt 0:00:38]} 40. Rd5 {[%emt 0:00:00]} Kb6 {[%emt 0:03:
41]} 41. Rd7 {[%emt 0:04:42]} Ka6 {[%emt 0:03:53]} (41... a6 $142 42. Rxh5 a5)
42. b4 {[%emt 0:01:27]} Kb6 {[%emt 0:03:08]} 43. Rxh5 {[%emt 0:02:44]} Rxf4 {
[%emt 0:00:16]} 44. Rhh7 {[%emt 0:00:14]} Ne5 {[%emt 0:00:20]} 45. Rxb7+ {
[%emt 0:00:32]} Kc6 {[%emt 0:00:06]} 46. Rxa7 {[%emt 0:01:16] Rh6+ would kill
now.} Rf3 {[%emt 0:02:00]} 47. Ra6+ {[%emt 0:00:00]} Kd5 {[%emt 0:00:15]} 48.
Ra5+ {[%emt 0:00:52]} Ke4 {[%emt 0:00:16]} 49. Re7 {[%emt 0:00:14] Weighted
Error Value: White=0.16 (very precise) /Black=0.60} 1-0